[Event "GER-ch Youth-U14w 2022"]
[Site "Willingen"]
[Date "2022.06.11"]
[Round "9.1"]
[White "Peglau, Dora"]
[Black "Englert, Lin"]
[Result "1/2-1/2"]
[ECO "B38"]
[WhiteElo "2008"]
[BlackElo "1503"]
[Annotator "TA"]
[PlyCount "44"]
[EventDate "2022.06.05"]
[EventType "swiss"]
[EventRounds "9"]
[EventCountry "GER"]
[SourceTitle "playchess.com"]
[Source "ChessBase"]
[SourceQuality "1"]
[TimeControl "40/4500+30:900+30"]

{[%evp 23,44,46,58,23,23,22,25,18,20,12,27,18,23,23,26,9,18,19,19,20,20,14,33]} 1. e4 {[%emt 0:00:00]} c5 {[%emt 0:00:00]} 2. Nf3 {[%emt 0:00:00]} Nc6 {[%emt 0:00:00]} 3. d4 {[%emt 0:00:00]} cxd4 {[%emt 0:00:00]} 4. Nxd4 {[%emt 0:00:00]} g6 {[%emt 0:00:00]} 5. c4 {[%emt 0:00:00]} Bg7 {[%emt 0:00:00]} 6. Be3 {[%emt 0:00:00]} Nf6 {[%emt 0:00:00]} 7. Nc3 {[%emt 0:00:00]} d6 {[%emt 0:00:00]} 8. f3 {[%emt 0:00:00]} O-O {[%emt 0:00:00]} 9. Be2 {[%emt 0:00:00]} Nxd4 {[%emt 0:00:00]} 10. Bxd4 {[%emt 0:00:00]} Bd7 {[%emt 0:00:00]} 11. O-O {[%emt 0:00:00]} Bc6 {[%emt 0:00:00]} 12. Qd2 {[%emt 0:00:00]} Nd7 {[%emt 0:00:00]} 13. Rfd1 {[%emt 0:00:00] B38: Sicilian: Maroczy Bind with 5...Bg7 and 7...0-0.} Bxd4+ {[%emt 0:01:33]} 14. Qxd4 {[%emt 0:00:00]} Qb6 {[%emt 0:00:07]} 15. Qxb6 {[%emt 0:00:00] White has an edge.} Nxb6 {[%emt 0:00:10]} 16. Nd5 {[%emt 0:00:00] [#]} Nxd5 $146 {[%emt 0:01:05]} ({Predecessor:} 16... Bxd5 17. exd5 Rfc8 18. b3 Nd7 19. f4 Nc5 20. Re1 Rc7 21. Bf1 Re8 22. Re3 f5 {½-½ (52) Blesa Puig,P (1705)-Garcia Gil,O (1610) Llinars del Valles 2018}) 17. cxd5 {[%emt 0:00:00]} Bd7 {[%emt 0:00:14]} 18. Rac1 {[%emt 0:00:00]} Rac8 {[%emt 0:00:17] Prevents Rc7.} 19. Kf2 {[%emt 0:00:00]} Rxc1 {[%emt 0:01:23] The position is equal.} 20. Rxc1 {[%emt 0:00:00] [#] Black must now prevent Rc7.} Rc8 {[%emt 0:00:04] Prevents Rc7.} 21. Rxc8+ {[%emt 0:00:00]} Bxc8 {[%emt 0:00:06]} 22. Ke3 {[%emt 0:00:00]} Bd7 {[%emt 0:00:43] Weighted Error Value: White=0.10 (very precise) /Black=0.05 (flawless)} 1/2-1/2

[Event "GER-ch Youth-U14w 2022"]
[Site "Willingen"]
[Date "2022.06.11"]
[Round "9.2"]
[White "Trunz, Michelle"]
[Black "Lorenz, Veronika"]
[Result "1/2-1/2"]
[ECO "E71"]
[WhiteElo "1708"]
[BlackElo "1510"]
[Annotator "NA RC COMBH"]
[PlyCount "90"]
[EventDate "2022.06.05"]
[EventType "swiss"]
[EventRounds "9"]
[EventCountry "GER"]
[SourceTitle "playchess.com"]
[Source "ChessBase"]
[SourceQuality "1"]
[TimeControl "40/4500+30:900+30"]

1. d4 {[%emt 0:00:00]} Nf6 {[%emt 0:00:00]} 2. c4 {[%emt 0:00:00]} g6 {[%emt 0:00:00]} 3. Nc3 {[%emt 0:00:00]} Bg7 {[%emt 0:00:00]} 4. e4 {[%emt 0:00:00]} d6 {[%emt 0:00:00]} 5. h3 {[%emt 0:00:00]} O-O {[%emt 0:00:00]} 6. Nf3 {[%emt 0:00:00]} Na6 {[%emt 0:00:00]} 7. Bg5 {[%emt 0:00:00]} c5 {[%emt 0:00:00]} 8. Be3 {[%emt 0:00:00]} b6 {[%emt 0:00:00]} 9. Rc1 {[%emt 0:00:00]} Bb7 {[%emt 0:05:28]} 10. Bd3 {[%emt 0:00:00]} Rc8 {[%emt 0:05:26]} 11. a3 {[%emt 0:01:28]} e6 {[%emt 0:09:07]} 12. O-O {[%emt 0:02:16]} d5 {[%emt 0:08:24]} 13. cxd5 {[%emt 0:06:19]} c4 {[%emt 0:04:29]} 14. Be2 {[%emt 0:00:53]} exd5 {[%emt 0:00:49]} 15. exd5 {[%emt 0:16:27]} Nxd5 {[%emt 0:00:13]} 16. Nxd5 {[%emt 0:01:15]} Qxd5 {[%emt 0:07:00]} 17. a4 {[%emt 0:06:26]} Nb4 {[%emt 0:05:26]} 18. Qd2 {[%emt 0:01:45]} a5 {[%emt 0:00:14]} 19. Rfd1 {[%emt 0:08:48]} Na2 {[%emt 0:07:34]} 20. Rc2 {[%emt 0:03:06]} Nb4 {[%emt 0:02:19]} 21. Rc3 {[%emt 0:01:48]} Na2 {[%emt 0:05:23]} 22. Ra3 {[%emt 0:00:39]} Nb4 {[%emt 0:00:43]} 23. Ne1 {[%emt 0:04:16]} Rfd8 {[%emt 0:03:10]} 24. Bf3 {[%emt 0:06:36]} Qd7 {[%emt 0:00:07]} 25. Bg4 {[%emt 0:02:13]} f5 {[%emt 0:00:07]} 26. Bf3 {[%emt 0:05:50]} Bxf3 {[%emt 0:00:58]} 27. Nxf3 {[%emt 0:00:38]} Nd3 {[%emt 0:02:39]} 28. b3 {[%emt 0:06:01]} Nb4 {[%emt 0:13:44]} 29. bxc4 {[%emt 0:07:22]} Rxc4 {[%emt 0:00:06]} 30. Rc3 {[%emt 0:01:19]} Rxc3 {[%emt 0:03:01]} 31. Qxc3 {[%emt 0:00:04]} Qxa4 {[%emt 0:00:02]} 32. Qc4+ {[%emt 0:00:44]} Kh8 {[%emt 0:00:20]} 33. Rc1 {[%emt 0:00:40]} Qe8 {[%emt 0:03:17]} 34. Ng5 {[%emt 0:01:35]} Nd5 {[%emt 0:01:06]} 35. Re1 {[%emt 0:02:22]} Qd7 {[%emt 0:00:50]} 36. Bd2 {[%emt 0:01:16]} Rc8 {[%emt 0:00:46]} 37. Qd3 {[%emt 0:00:53]} Re8 {[%emt 0:00:19]} 38. Rxe8+ {[%emt 0:00:52]} Qxe8 {[%emt 0:00:01]} 39. Qa6 {[%emt 0:00:37]} h6 {[%emt 0:00:56]} 40. Qb7 {[%emt 0:00:25]} hxg5 {[%emt 0:00:45]} 41. Qxd5 {[%emt 0:15:05]} Bf6 {[%emt 0:00:00]} 42. Qc4 {[%emt 0:00:00]} b5 {[%emt 0:00:00]} 43. Qd3 {[%emt 0:00:00]} a4 {[%emt 0:00:00]} 44. d5 {[%emt 0:00:00]} f4 {[%emt 0:00:00]} 45. d6 {[%emt 0:00:00]} Kh7 {[%emt 0:06:16]} 1/2-1/2

[Event "GER-ch Youth-U14w 2022"]
[Site "Willingen"]
[Date "2022.06.11"]
[Round "9.3"]
[White "Bezsonna, Polina"]
[Black "Braeutigam, Katerina"]
[Result "1/2-1/2"]
[ECO "C44"]
[WhiteElo "1511"]
[BlackElo "1860"]
[Annotator "NA RC COMBH"]
[PlyCount "82"]
[EventDate "2022.06.05"]
[EventType "swiss"]
[EventRounds "9"]
[EventCountry "GER"]
[SourceTitle "playchess.com"]
[Source "ChessBase"]
[SourceQuality "1"]
[TimeControl "40/4500+30:900+30"]

1. e4 {[%emt 0:00:00]} e5 {[%emt 0:00:00]} 2. Nf3 {[%emt 0:00:00]} Nc6 {[%emt 0:00:00]} 3. d4 {[%emt 0:00:00]} exd4 {[%emt 0:00:00]} 4. Bc4 {[%emt 0:00:00]} Bc5 {[%emt 0:00:00]} 5. O-O {[%emt 0:00:00]} d6 {[%emt 0:00:00]} 6. h3 {[%emt 0:00:00]} Nge7 {[%emt 0:00:00]} 7. Nbd2 {[%emt 0:00:00]} Ng6 {[%emt 0:12:15]} 8. Nb3 {[%emt 0:01:47]} Nge5 {[%emt 0:02:08]} 9. Bb5 {[%emt 0:04:20]} O-O {[%emt 0:13:22]} 10. Nfxd4 {[%emt 0:10:18]} Nxd4 {[%emt 0:01:21]} 11. Nxd4 {[%emt 0:00:11] [#]} Qf6 {[%emt 0:02:47]} (11... Bxh3 $1 $17 {[%mdl 512]} 12. c3 (12. gxh3 Bxd4 13. Kg2 Bb6 $17) 12... Be6) 12. Ne2 {[%emt 0:17:28]} Qg6 {[%emt 0:06:28]} (12... c6 $17 13. Ba4 a5) 13. Bd3 {[%emt 0:03:21]} Qh5 {[%emt 0:18:02]} 14. Nf4 {[%emt 0:03:55]} Qh4 {[%emt 0:04:33]} 15. Qh5 $15 {[%emt 0:03:56]} Qxh5 {[%emt 0:04:38]} 16. Nxh5 {[%emt 0:00:07]} Nxd3 {[%emt 0:02:41]} 17. cxd3 {[%emt 0:00:07]} f5 {[%emt 0:00:33]} 18. Bd2 {[%emt 0:08:45]} fxe4 {[%emt 0:01:43]} 19. dxe4 {[%emt 0:00:06]} Bd7 {[%emt 0:01:49]} 20. a4 {[%emt 0:02:53]} Bc6 {[%emt 0:02:52]} 21. Bc3 {[%emt 0:01:00]} a6 {[%emt 0:02:40]} 22. Nxg7 {[%emt 0:04:58]} Kf7 {[%emt 0:06:02]} 23. Rfe1 {[%emt 0:09:22]} Rg8 {[%emt 0:02:33]} 24. Nf5 {[%emt 0:02:55]} Rg6 {[%emt 0:00:27]} 25. Nd4 {[%emt 0:06:06]} Rag8 {[%emt 0:00:23]} 26. g3 {[%emt 0:01:33]} Bd7 {[%emt 0:00:38]} 27. Kh2 {[%emt 0:01:13]} Rh6 {[%emt 0:00:28]} 28. h4 {[%emt 0:01:15]} Rf6 {[%emt 0:00:28]} 29. Re2 {[%emt 0:02:56]} Bg4 {[%emt 0:00:31]} 30. Rd2 {[%emt 0:00:27]} Re8 {[%emt 0:00:32]} 31. Re1 {[%emt 0:00:31]} Kg8 {[%emt 0:00:34]} 32. f4 {[%emt 0:00:52]} Bxd4 {[%emt 0:00:29]} 33. Bxd4 {[%emt 0:00:06]} Rfe6 {[%emt 0:00:19]} 34. e5 {[%emt 0:00:14]} dxe5 {[%emt 0:00:39]} 35. Bxe5 {[%emt 0:00:31]} R6e7 {[%emt 0:00:27]} 36. Rc1 {[%emt 0:00:27]} c6 {[%emt 0:00:32]} 37. Rc4 {[%emt 0:00:54]} h5 {[%emt 0:00:34]} 38. Rcd4 {[%emt 0:00:44]} Kf7 {[%emt 0:00:25]} 39. a5 {[%emt 0:00:47]} Be6 {[%emt 0:00:34]} 40. b4 {[%emt 0:00:38]} Kg6 {[%emt 0:00:31]} 41. Kg2 {[%emt 0:15:34]} Bg4 {[%emt 0:00:00]} 1/2-1/2

[Event "GER-ch Youth-U14w 2022"]
[Site "Willingen"]
[Date "2022.06.11"]
[Round "9.4"]
[White "Wartenberg, Alissa"]
[Black "Stepanjan, Marianne"]
[Result "0-1"]
[ECO "B90"]
[WhiteElo "1741"]
[BlackElo "1489"]
[Annotator "NA RC COMBH"]
[PlyCount "164"]
[EventDate "2022.06.05"]
[EventType "swiss"]
[EventRounds "9"]
[EventCountry "GER"]
[SourceTitle "playchess.com"]
[Source "ChessBase"]
[SourceQuality "1"]
[TimeControl "40/4500+30:900+30"]

1. e4 {[%emt 0:00:00]} c5 {[%emt 0:00:00]} 2. Nf3 {[%emt 0:00:00]} d6 {[%emt 0:00:00]} 3. d4 {[%emt 0:00:00]} cxd4 {[%emt 0:00:00]} 4. Nxd4 {[%emt 0:00:00]} Nf6 {[%emt 0:00:00]} 5. Nc3 {[%emt 0:00:00]} a6 {[%emt 0:00:00]} 6. Bc4 {[%emt 0:00:00]} e6 {[%emt 0:00:00]} 7. Be3 {[%emt 0:00:00]} Be7 {[%emt 0:00:00]} 8. Qe2 {[%emt 0:00:00]} O-O {[%emt 0:00:00]} 9. O-O-O {[%emt 0:00:00]} Re8 {[%emt 0:02:00]} 10. g4 {[%emt 0:00:00]} b5 {[%emt 0:01:26]} 11. Bd3 {[%emt 0:04:27]} Bb7 {[%emt 0:03:24]} 12. g5 {[%emt 0:01:27]} Nfd7 {[%emt 0:01:17]} 13. Rhg1 {[%emt 0:13:04]} Nc5 {[%emt 0:04:56]} 14. Qg4 {[%emt 0:10:10]} b4 {[%emt 0:10:24]} 15. Nce2 {[%emt 0:02:07]} Nbd7 {[%emt 0:05:17]} 16. h4 {[%emt 0:02:36]} Ne5 {[%emt 0:11:56]} 17. Qg2 {[%emt 0:06:20]} Rc8 {[%emt 0:04:31]} 18. Kb1 {[%emt 0:01:05]} Nexd3 {[%emt 0:13:11]} 19. cxd3 {[%emt 0:02:12]} a5 {[%emt 0:07:48]} 20. h5 {[%emt 0:00:35]} a4 {[%emt 0:03:52]} 21. g6 {[%emt 0:00:23]} fxg6 {[%emt 0:00:34]} 22. hxg6 {[%emt 0:01:20]} h6 {[%emt 0:02:16]} 23. Qh3 {[%emt 0:07:10]} Bf6 {[%emt 0:04:00]} 24. Rg3 {[%emt 0:14:37]} Ba6 {[%emt 0:07:41]} 25. Nc1 {[%emt 0:07:34]} a3 {[%emt 0:01:37]} 26. b3 {[%emt 0:01:57]} Qc7 {[%emt 0:00:15]} 27. Bxh6 {[%emt 0:08:52]} gxh6 {[%emt 0:01:51]} 28. Qxh6 {[%emt 0:02:17]} Bxd4 {[%emt 0:00:21]} 29. Rh1 {[%emt 0:01:13]} Qg7 {[%emt 0:00:49]} 30. Qh7+ {[%emt 0:00:26]} Qxh7 {[%emt 0:00:11]} 31. gxh7+ {[%emt 0:00:24]} Kf7 {[%emt 0:00:43]} 32. Rf3+ {[%emt 0:00:38]} Ke7 {[%emt 0:00:29]} 33. Ne2 {[%emt 0:00:32]} Bh8 {[%emt 0:00:16]} 34. Nf4 {[%emt 0:00:05]} Rf8 {[%emt 0:00:14]} 35. Ng6+ {[%emt 0:00:04]} Kd7 {[%emt 0:00:35]} 36. Rxf8 {[%emt 0:00:50]} Bxd3+ {[%emt 0:01:00]} 37. Kc1 {[%emt 0:00:04]} Rxf8 {[%emt 0:00:14]} 38. Nxf8+ {[%emt 0:00:03]} Kc6 {[%emt 0:00:44]} 39. f3 {[%emt 0:01:02]} Be2 {[%emt 0:00:35]} 40. Rh3 {[%emt 0:00:53]} d5 {[%emt 0:00:29]} 41. exd5+ {[%emt 0:15:33]} exd5 {[%emt 0:15:04]} 42. Ng6 {[%emt 0:00:26]} Bb2+ {[%emt 0:00:00]} 43. Kd2 {[%emt 0:00:00]} Bd3 {[%emt 0:00:00]} 44. Nf4 {[%emt 0:00:00]} Bc3+ {[%emt 0:00:00]} 45. Ke3 {[%emt 0:00:00]} Bb1 {[%emt 0:00:00]} 46. Ne2 {[%emt 0:00:00]} Bh8 {[%emt 0:00:00]} 47. Nc1 {[%emt 0:00:00]} d4+ {[%emt 0:00:00]} 48. Kf4 {[%emt 0:00:00]} Ne6+ {[%emt 0:00:00]} 49. Kg4 {[%emt 0:01:32]} Nf8 {[%emt 0:00:00]} 50. Rh6+ {[%emt 0:00:58]} Kd5 {[%emt 0:00:00]} 51. Ra6 {[%emt 0:00:58]} Nxh7 {[%emt 0:00:00]} 52. Ra5+ {[%emt 0:00:34]} Kc6 {[%emt 0:00:00]} 53. Ra6+ {[%emt 0:00:41]} Kb5 {[%emt 0:00:00]} 54. Ra8 {[%emt 0:00:15]} Bf6 {[%emt 0:00:00]} 55. Rb8+ {[%emt 0:00:07]} Kc5 {[%emt 0:00:00]} 56. Rc8+ {[%emt 0:00:30]} Kd5 {[%emt 0:00:00]} 57. f4 {[%emt 0:01:09]} d3 {[%emt 0:00:54]} 58. Rc7 {[%emt 0:01:18]} Nf8 {[%emt 0:01:03]} 59. Nxd3 {[%emt 0:00:50]} Bxd3 {[%emt 0:00:08]} 60. Rc1 {[%emt 0:00:05]} Bc3 {[%emt 0:01:45]} 61. f5 {[%emt 0:00:12]} Ke5 {[%emt 0:00:27]} 62. f6 {[%emt 0:00:27]} Kxf6 {[%emt 0:00:13]} 63. Kf3 {[%emt 0:00:06]} Ne6 {[%emt 0:00:45]} 64. Ke3 {[%emt 0:00:09]} Nc5 {[%emt 0:00:48]} 65. Rh1 {[%emt 0:00:31]} Bg6 {[%emt 0:01:18]} 66. Rf1+ {[%emt 0:00:11]} Ke5 {[%emt 0:00:31]} 67. Rh1 {[%emt 0:00:50]} Nxb3 {[%emt 0:00:51]} 68. axb3 {[%emt 0:00:34]} a2 {[%emt 0:00:06]} 69. Ke2 {[%emt 0:00:34]} a1=Q {[%emt 0:00:08]} 70. Rxa1 {[%emt 0:00:08]} Bxa1 {[%emt 0:00:03]} 71. Kd2 {[%emt 0:00:04]} Bb2 {[%emt 0:00:11]} 72. Ke3 {[%emt 0:00:09]} Bc2 {[%emt 0:00:13]} 73. Ke2 {[%emt 0:00:05]} Bc3 {[%emt 0:00:28]} 74. Ke3 {[%emt 0:00:06]} Bxb3 {[%emt 0:00:09]} 75. Kd3 {[%emt 0:00:05]} Kd5 {[%emt 0:00:39]} 76. Ke2 {[%emt 0:00:08]} Bc2 {[%emt 0:00:05]} 77. Ke3 {[%emt 0:00:06]} b3 {[%emt 0:00:07]} 78. Ke2 {[%emt 0:00:03]} b2 {[%emt 0:00:06]} 79. Kf3 {[%emt 0:00:03]} b1=Q {[%emt 0:00:07]} 80. Kg4 {[%emt 0:00:03]} Qf1 {[%emt 0:00:22]} 81. Kg5 {[%emt 0:00:03]} Qf5+ {[%emt 0:00:13]} 82. Kh6 {[%emt 0:00:07]} Qg6# 0-1

[Event "GER-ch Youth-U14w 2022"]
[Site "Willingen"]
[Date "2022.06.11"]
[Round "9.6"]
[White "Mueller, Riyanna"]
[Black "Haug, Mara"]
[Result "0-1"]
[ECO "C47"]
[WhiteElo "1521"]
[BlackElo "1394"]
[Annotator "NA RC COMBH"]
[PlyCount "68"]
[EventDate "2022.06.05"]
[EventType "swiss"]
[EventRounds "9"]
[EventCountry "GER"]
[SourceTitle "playchess.com"]
[Source "ChessBase"]
[SourceQuality "1"]
[TimeControl "40/4500+30:900+30"]

1. e4 {[%emt 0:00:00]} e5 {[%emt 0:00:00]} 2. Nf3 {[%emt 0:00:00]} Nc6 {[%emt 0:00:00]} 3. Nc3 {[%emt 0:00:00]} Nf6 {[%emt 0:00:00]} 4. a3 {[%emt 0:00:00]} a6 {[%emt 0:00:00]} 5. d4 {[%emt 0:00:00]} exd4 {[%emt 0:00:00]} 6. Nxd4 {[%emt 0:00:00]} Bc5 {[%emt 0:00:00]} 7. Be3 {[%emt 0:00:00]} Ba7 {[%emt 0:01:47]} 8. Bc4 {[%emt 0:00:00]} d6 {[%emt 0:04:13]} 9. Ba2 {[%emt 0:00:00]} O-O {[%emt 0:04:55]} 10. f3 {[%emt 0:02:49]} Re8 {[%emt 0:06:13]} 11. Qd2 {[%emt 0:03:05]} Nxd4 {[%emt 0:05:12]} 12. Bxd4 {[%emt 0:00:36]} Bxd4 {[%emt 0:00:59]} 13. Qxd4 {[%emt 0:00:07]} Be6 {[%emt 0:01:52]} 14. Bxe6 {[%emt 0:01:53]} fxe6 {[%emt 0:01:13]} 15. O-O-O {[%emt 0:01:02]} Nd7 {[%emt 0:05:31]} 16. Kb1 {[%emt 0:03:48]} Nb6 {[%emt 0:02:28]} 17. h4 {[%emt 0:03:44]} Qf6 {[%emt 0:03:16]} 18. Qd3 {[%emt 0:03:07]} Rf8 {[%emt 0:01:23]} 19. h5 {[%emt 0:02:33]} h6 {[%emt 0:03:49]} 20. Rh3 {[%emt 0:04:46]} Nd7 {[%emt 0:02:33]} 21. Ne2 {[%emt 0:05:13]} Nc5 {[%emt 0:04:29]} 22. Qe3 {[%emt 0:02:32]} Qe5 {[%emt 0:03:27]} 23. Rdh1 {[%emt 0:05:30]} b6 {[%emt 0:03:43]} 24. Rg3 {[%emt 0:02:03]} Kh7 {[%emt 0:00:57]} 25. Rh4 {[%emt 0:01:58]} Rf7 {[%emt 0:02:34]} 26. Rg6 {[%emt 0:05:01]} Rf6 {[%emt 0:03:28]} 27. Rg3 {[%emt 0:07:35]} d5 {[%emt 0:02:13]} 28. Rgg4 {[%emt 0:07:42]} dxe4 {[%emt 0:01:30]} 29. Nc3 {[%emt 0:02:20]} Rd8 {[%emt 0:03:42]} 30. Nxe4 {[%emt 0:01:56]} Nxe4 {[%emt 0:01:37]} 31. Rxe4 {[%emt 0:00:59]} Rd1+ {[%emt 0:01:03]} 32. Ka2 {[%emt 0:00:16]} Qd5+ {[%emt 0:01:21]} 33. b3 {[%emt 0:05:36]} Qd2 {[%emt 0:01:15]} 34. Qe2 {[%emt 0:01:14]} Qc1 {[%emt 0:01:23]} 0-1

[Event "GER-ch Youth-U14w 2022"]
[Site "Willingen"]
[Date "2022.06.11"]
[Round "9.7"]
[White "Jacobasch, Ronja"]
[Black "Hergenroeder, Cora"]
[Result "1/2-1/2"]
[ECO "A06"]
[WhiteElo "1441"]
[BlackElo "1453"]
[Annotator "NA RC COMBH"]
[PlyCount "76"]
[EventDate "2022.06.05"]
[EventType "swiss"]
[EventRounds "9"]
[EventCountry "GER"]
[SourceTitle "playchess.com"]
[Source "ChessBase"]
[SourceQuality "1"]
[TimeControl "40/4500+30:900+30"]

1. Nf3 {[%emt 0:00:00]} d5 {[%emt 0:00:00]} 2. g3 {[%emt 0:00:00]} Nf6 {[%emt 0:00:00]} 3. Bg2 {[%emt 0:00:00]} e6 {[%emt 0:00:00]} 4. c4 {[%emt 0:00:00]} b6 {[%emt 0:00:00]} 5. O-O {[%emt 0:00:00]} Bb7 {[%emt 0:00:00]} 6. d3 {[%emt 0:00:00]} Be7 {[%emt 0:00:00]} 7. Nbd2 {[%emt 0:00:00]} O-O {[%emt 0:00:00]} 8. a3 {[%emt 0:00:00]} c5 {[%emt 0:00:00]} 9. b3 {[%emt 0:00:00]} Re8 {[%emt 0:00:00]} 10. Bb2 {[%emt 0:02:12]} Nbd7 {[%emt 0:00:00]} 11. Rb1 {[%emt 0:02:49]} Rc8 {[%emt 0:00:00]} 12. Ba1 {[%emt 0:03:28]} h6 {[%emt 0:07:22]} 13. b4 {[%emt 0:10:06]} cxb4 {[%emt 0:00:43]} 14. axb4 {[%emt 0:00:14]} Nh7 {[%emt 0:05:27]} 15. Bd4 {[%emt 0:20:54]} dxc4 {[%emt 0:04:40]} 16. Nxc4 {[%emt 0:02:32]} Bd5 {[%emt 0:02:33]} 17. Ne3 {[%emt 0:04:05]} Ba8 {[%emt 0:05:19]} 18. Qb3 {[%emt 0:04:07]} Bf6 {[%emt 0:04:45]} 19. Bxf6 {[%emt 0:02:01]} Ndxf6 {[%emt 0:00:11]} 20. Ra1 {[%emt 0:01:18]} Rc7 {[%emt 0:01:29]} 21. Ra3 {[%emt 0:03:16]} Nd5 {[%emt 0:00:59]} 22. Nxd5 {[%emt 0:07:49]} Bxd5 {[%emt 0:00:15]} 23. Qb2 {[%emt 0:01:08]} Qa8 {[%emt 0:03:16]} 24. Rfa1 {[%emt 0:01:57]} Ng5 {[%emt 0:17:39]} 25. e4 {[%emt 0:05:01]} Nxf3+ {[%emt 0:01:11]} 26. Bxf3 {[%emt 0:00:06]} Bc6 {[%emt 0:00:50]} 27. b5 {[%emt 0:01:24]} Bd7 {[%emt 0:01:19]} 28. Bg2 {[%emt 0:03:25]} Re7 {[%emt 0:03:00]} 29. Bf1 {[%emt 0:00:53]} Be8 {[%emt 0:03:37]} 30. f3 {[%emt 0:00:57]} Qd8 {[%emt 0:06:37]} 31. d4 {[%emt 0:01:30]} Red7 {[%emt 0:01:02]} 32. Rd1 {[%emt 0:00:17]} Rb7 {[%emt 0:02:00]} 33. Kg2 {[%emt 0:00:32]} Rbc7 {[%emt 0:01:14]} 34. Ra4 {[%emt 0:01:38]} Qc8 {[%emt 0:01:10]} 35. Bd3 {[%emt 0:01:59]} Qd8 {[%emt 0:02:06]} 36. Rc4 {[%emt 0:01:45]} Rxc4 {[%emt 0:00:50]} 37. Bxc4 {[%emt 0:00:01]} Rc7 {[%emt 0:00:40]} 38. Bd3 {[%emt 0:00:51]} Rd7 1/2-1/2

[Event "GER-ch Youth-U14w 2022"]
[Site "Willingen"]
[Date "2022.06.11"]
[Round "9.8"]
[White "Müller, Cosima"]
[Black "Reich, Elisabeth"]
[Result "0-1"]
[ECO "B33"]
[WhiteElo "1389"]
[BlackElo "1457"]
[Annotator "NA RC COMBH"]
[PlyCount "112"]
[EventDate "2022.06.05"]
[EventType "swiss"]
[EventRounds "9"]
[EventCountry "GER"]
[SourceTitle "playchess.com"]
[Source "ChessBase"]
[SourceQuality "1"]
[TimeControl "40/4500+30:900+30"]

1. e4 {[%emt 0:00:00]} c5 {[%emt 0:00:00]} 2. Nf3 {[%emt 0:00:00]} Nc6 {[%emt 0:00:00]} 3. d4 {[%emt 0:00:00]} cxd4 {[%emt 0:00:00]} 4. Nxd4 {[%emt 0:00:00]} Nf6 {[%emt 0:00:00]} 5. Nc3 {[%emt 0:00:00]} e6 {[%emt 0:00:00]} 6. Bg5 {[%emt 0:00:00]} Bb4 {[%emt 0:00:00]} 7. Nde2 {[%emt 0:08:57]} h6 {[%emt 0:00:00]} 8. Bxf6 {[%emt 0:00:51]} Qxf6 {[%emt 0:00:00]} 9. Qd2 {[%emt 0:02:38]} b6 {[%emt 0:00:00]} 10. a3 {[%emt 0:04:15]} Bxc3 {[%emt 0:00:00]} 11. Nxc3 {[%emt 0:00:21]} O-O {[%emt 0:00:53]} 12. O-O-O {[%emt 0:03:24]} a6 {[%emt 0:01:59]} 13. h4 {[%emt 0:01:38]} b5 {[%emt 0:02:31]} 14. Na2 {[%emt 0:04:25]} Rd8 {[%emt 0:09:23]} 15. g4 {[%emt 0:00:50]} Qf3 {[%emt 0:04:56]} 16. Bd3 {[%emt 0:06:20]} Ne5 {[%emt 0:03:53]} 17. Rdg1 {[%emt 0:08:46]} Nxd3+ {[%emt 0:00:44]} 18. Qxd3 {[%emt 0:02:58]} Qxd3 {[%emt 0:00:26]} 19. cxd3 {[%emt 0:00:10]} Bb7 {[%emt 0:00:32]} 20. Rh3 {[%emt 0:01:11]} Kf8 {[%emt 0:01:26]} 21. f4 {[%emt 0:02:35]} d5 {[%emt 0:00:57]} 22. Re3 {[%emt 0:01:25]} dxe4 {[%emt 0:02:30]} 23. dxe4 {[%emt 0:00:21]} Rac8+ {[%emt 0:00:16]} 24. Kb1 {[%emt 0:02:30]} Rd2 {[%emt 0:01:22]} 25. Nc3 {[%emt 0:05:01]} Rh2 {[%emt 0:01:55]} 26. h5 {[%emt 0:01:31]} Rd8 {[%emt 0:02:57]} 27. Rge1 {[%emt 0:11:27]} Rg2 {[%emt 0:02:37]} 28. g5 {[%emt 0:03:54]} hxg5 {[%emt 0:00:17]} 29. fxg5 {[%emt 0:00:21]} Rxg5 {[%emt 0:00:11]} 30. Rh3 {[%emt 0:01:01]} Rd4 {[%emt 0:02:46]} 31. Kc2 {[%emt 0:04:05]} Rg4 {[%emt 0:01:08]} 32. e5 {[%emt 0:00:49]} Rh4 {[%emt 0:00:43]} 33. Rxh4 {[%emt 0:02:06]} Rxh4 {[%emt 0:00:03]} 34. Kb3 {[%emt 0:01:09]} Rxh5 {[%emt 0:00:16]} 35. Kb4 {[%emt 0:00:34]} Ke7 {[%emt 0:01:07]} 36. Ka5 {[%emt 0:01:35]} Rh2 {[%emt 0:02:29]} 37. Kb6 {[%emt 0:01:14]} Bc8 {[%emt 0:00:27]} 38. Rc1 {[%emt 0:01:43]} Rxb2 {[%emt 0:03:52]} 39. Ne4 {[%emt 0:03:58]} Bd7 {[%emt 0:00:19]} 40. Rc7 {[%emt 0:00:51]} f5 {[%emt 0:01:41]} 41. Nc5 {[%emt 0:00:00]} Rd2 {[%emt 0:00:00]} 42. Kxa6 {[%emt 0:00:00]} f4 {[%emt 0:00:00]} 43. Nxd7 {[%emt 0:00:00]} Rxd7 {[%emt 0:00:00]} 44. Rc2 {[%emt 0:00:00]} Rd5 {[%emt 0:00:00]} 45. Rf2 {[%emt 0:00:00]} g5 {[%emt 0:00:00]} 46. Re2 {[%emt 0:00:00]} f3 {[%emt 0:00:00]} 47. Re3 {[%emt 0:00:00]} g4 {[%emt 0:00:00]} 48. Re4 {[%emt 0:00:00]} f2 {[%emt 0:00:00]} 49. Rxg4 {[%emt 0:00:00]} f1=Q {[%emt 0:00:00]} 50. Rg7+ {[%emt 0:00:00]} Kf8 {[%emt 0:00:00]} 51. Rb7 {[%emt 0:00:00]} b4+ {[%emt 0:00:00]} 52. Ka7 {[%emt 0:00:00]} bxa3 {[%emt 0:00:00]} 53. Rb8+ {[%emt 0:00:00]} Ke7 {[%emt 0:00:00]} 54. Kb7 {[%emt 0:00:00]} Qb5+ {[%emt 0:00:00]} 55. Kc7 {[%emt 0:00:00]} Rd7+ {[%emt 0:00:00]} 56. Kc8 {[%emt 0:00:00]} Qc6# {[%emt 0:00:00]} 0-1

[Event "GER-ch Youth-U14w 2022"]
[Site "Willingen"]
[Date "2022.06.11"]
[Round "9.9"]
[White "Fock, Madiha"]
[Black "Modali, Nikhilamrutha"]
[Result "1/2-1/2"]
[ECO "B40"]
[WhiteElo "1468"]
[BlackElo "1262"]
[Annotator "NA RC COMBH"]
[PlyCount "42"]
[EventDate "2022.06.05"]
[EventType "swiss"]
[EventRounds "9"]
[EventCountry "GER"]
[SourceTitle "playchess.com"]
[Source "ChessBase"]
[SourceQuality "1"]
[TimeControl "40/4500+30:900+30"]

1. e4 {[%emt 0:00:00]} c5 {[%emt 0:00:00]} 2. Nf3 {[%emt 0:00:00]} e6 {[%emt 0:00:00]} 3. g3 {[%emt 0:00:00]} d5 {[%emt 0:00:00]} 4. exd5 {[%emt 0:00:00]} exd5 {[%emt 0:00:00]} 5. d4 {[%emt 0:00:00]} Nc6 {[%emt 0:00:00]} 6. Bg2 {[%emt 0:00:00]} Bg4 {[%emt 0:00:00]} 7. Qe2+ {[%emt 0:00:27]} Qe7 {[%emt 0:00:00]} 8. Qxe7+ Bxe7 {[%emt 0:00:00]} 9. dxc5 {[%emt 0:01:24]} Bxc5 {[%emt 0:00:00]} 10. O-O {[%emt 0:07:27]} Nf6 {[%emt 0:03:08]} 11. Re1+ {[%emt 0:08:41]} Ne4 {[%emt 0:01:52]} 12. Be3 {[%emt 0:00:26]} O-O {[%emt 0:10:16]} 13. Bxc5 {[%emt 0:05:34]} Nxc5 {[%emt 0:00:09]} 14. Ne5 {[%emt 0:09:02]} Rfe8 {[%emt 0:02:17]} 15. f4 {[%emt 0:02:33]} Nxe5 {[%emt 0:07:12]} 16. fxe5 {[%emt 0:01:42]} Nd7 {[%emt 0:07:12]} 17. Bxd5 {[%emt 0:03:25]} Rxe5 {[%emt 0:06:29]} 18. Nc3 {[%emt 0:04:11]} Rae8 {[%emt 0:06:09]} 19. Rxe5 {[%emt 0:02:27]} Nxe5 {[%emt 0:00:54]} 20. Rf1 {[%emt 0:06:17]} Be6 {[%emt 0:02:37]} 21. Bxe6 {[%emt 0:06:19]} Rxe6 {[%emt 0:02:06]} 1/2-1/2